Workbook

Sheet Sheet1
A1: 3.7 110
A2: 产品 | B2: 条码 | C2: 标签 | D2: 标签下 | E2: 数量 | F2: R | G2: W
A3: R- 9A Closure 2*6 WIG N1B# BW with silk base 24'' 24''-200D | B3: R-BW2*6WIG24-200D | D3: R- 9A Closure 2*6 WIG N1B# BW with silk base 24'' 24''-200D | E3: 1 | F3: =186.99*1.1 -> 205.689 | G3: =149*1.1 -> 163.9
A4: R- 9A Closure Wig 4*4 4/30# STW 16'' 16'' | B4: R-4/30#STW4*4WIG16 | D4: R- 9A Closure Wig 4*4 4/30# STW 16'' 16'' | E4: 1 | F4: =158.99 -> 158.99 | G4: =127 -> 127
A5: R- 9A Closure Wig 4*4 N1B BW 24'' 24''-250D | B5: R-BW4*4WIG24-250D | D5: R- 9A Closure Wig 4*4 N1B BW 24'' 24''-250D | E5: 1 | F5: =228.99*1.2 -> 274.788 | G5: =183-1.2 -> 181.8
A6: R- 9A Closure Wig 5*5 30# STW 14"14-250D | B6: R-30#STW5*5WIG14-250D | D6: R- 9A Closure Wig 5*5 30# STW 14"14-250D | E6: 1 | F6: =148.99*1.2 -> 178.788 | G6: =119+1.2 -> 120.2
A7: R- 9A Closure Wig 5*5 DW 12'' 12-250D | B7: R-DEEP5*5WIG12-250D | D7: R-9A Regular Closure Wig 5*5 DW 12'' 12-250D | E7: 1 | F7: =101.99+5 -> 106.99 | G7: =81+5 -> 86
A8: R- 9A Closure Wig 5*5 DW with Silk Base 12'' 12 | B8: R-DEEP5*5WIG12 | D8: R-9A Regular Closure Wig 5*5 DW with Silk Base 12'' 12 | E8: 1 | F8: =106.99 -> 106.99 | G8: =86 -> 86
A9: R- 9A Closure Wig 5*5 LDW 20'' 20-250D | B9: R-LSDP5*5WIG20-250D | D9: R-9A Regular Closure Wig 5*5 LDW 20'' 20-250D | E9: 1 | F9: =(193.99+5)*1.2 -> 238.788 | G9: =(155+5)*1.2 -> 192
A10: R- 9A Frontal Wig 13*4 1B/27# DW 16'' 16'' | B10: R-1B/27#DEEPLFW16 | D10: R- 9A Frontal Wig 13*4 1B/27# DW 16'' 16'' | E10: 1 | F10: =169.99+5 -> 174.99 | G10: =135+5 -> 140
A11: R- 9A Frontal Wig 13*4 2# BW 12'' 12''-250D | B11: R-2#BWLFW12-250D | D11: R- 9A Frontal WIG 13*4 2# BW 12'' 12''-250D | E11: 1 | F11: =123.99*1.2 -> 148.788 | G11: =99*1.2 -> 118.8
A12: R- 9A Frontal Wig 13*4 JC with Silk Base 14'' 14 | B12: R-CURLYLFW14 | D12: R-9A-Frontal Wig 13*4 JC with Silk Base 14'' 14 | E12: 1 | F12: =131.99 -> 131.99 | G12: =105 -> 105
A13: R- 9A Frontal Wig 13*4 N1B/30# BW 10'' 10'' | B13: R-1B/30#BWLFW10 | D13: R- 9A Frontal Wig 13*4 N1B/30# BW 10'' 10'' | E13: 1 | F13: =107.99 -> 107.99 | G13: =86 -> 86
A14: R- 9A Frontal Wig 13*6 8# BW 18'' 18'' | B14: R-8#BW3D13*6WIG18 | D14: R- 9A Frontal Wig 13*6 8# BW 18'' 18'' | E14: 1 | F14: =201.99+20 -> 221.99 | G14: =161+20 -> 181
A15: R- 9A Frontal Wig 13*6 WW 24'' 24-250D | B15: R-WATER3D13*6WIG24-250D | D15: R- 9A Frontal Wig 13*6 WW 24'' 24-250D | E15: 1 | F15: =(272.99+5)*1.2 -> 333.588 | G15: =(218+5)*1.2 -> 267.6
A16: V2-9A PU WIG 4*4 N1B# STW 18" 18 | B16: STWPU4*4WIG18 | C16: V2 9A PU WIG 4*4 N1B# STW 18" 18 | D16: Flat Iron Up To 350°F | E16: 1 | F16: =118.99 -> 118.99 | G16: =95 -> 95
A17: V2-9A PU WIG 2*5 N1B# STW 18" 18 | B17: STWPU2*5WIG18 | C17: V2-9A PU WIG 2*5 N1B# STW 18" 18 | D17: Flat Iron Up To 350°F | E17: 1 | F17: =118.99 -> 118.99 | G17: =95 -> 95
A18: V2-9A U WIG N1B/99J# STW 20" 20 | B18: 1B/99JSTWUPartWIG20 | D18: V2-9A U WIG N1B/99J# STW 20" 20 | E18: 1 | F18: =146.99+15 -> 161.99 | G18: =117+15 -> 132
A19: V2-9A U WIG N1B/RED# STW 18" 18 | B19: 1B/REDSTWUPartWIG18 | D19: V2-9A U WIG N1B/RED# STW 18" 18 | E19: 1 | F19: =118.99+15 -> 133.99 | G19: =95+15 -> 110
A20: V2-9A U WIG N1B/4/27# STW 20" 20 | B20: 1B/4/27STWUPartWIG20 | D20: V2-9A U WIG N1B/4/27# STW 20" 20 | E20: 1 | F20: =146.99+40 -> 186.99 | G20: =117+40 -> 157
A21: V2-9A U WIG N1B/PURPLE STW 20" 20 | B21: 1B/PURPLESTWUPartWIG18 | D21: V2-9A U WIG N1B/PURPLE STW 20" 20 | E21: 1 | F21: =146.99+15 -> 161.99 | G21: =117+15 -> 132
